fUSD/lending_fUSD_20260406
["ID","MTS","AMOUNT","RATE_DAILY","PERIOD"]
[419864972,1775440246665,-6561.68263661,0.00014833,2]
[419864994,1775441088431,2660.29,0.000161,120]
[419865026,1775441432917,-4555.16627291,0.0001,2]
[419865027,1775441432927,-2657.56549305,0.000107,2]
[419865042,1775441438590,-8051.26806205,0.000107,2]
[419865043,1775441438603,-6205.5425923,0.000107,2]
[419865044,1775441438799,-29348.86044437,0.000107,2]
[419865045,1775441438808,-1760.64283854,0.00011,2]
[419865046,1775441438818,-2290.6,0.00011507,2]
[419865047,1775441438827,-150.0,0.00012998,2]
[419865048,1775441438836,-35306.8967171,0.00012999,2]
[419865054,1775441441650,-16746.68077942,0.00012999,2]
[419865055,1775441441660,-512.45687813,0.00013,15]
[419865056,1775441441669,-150.0,0.00013089,2]
[419865057,1775441441679,-536.59426922,0.00013094,2]
[419865058,1775441441688,-507.0,0.000131,2]
[419865059,1775441441697,-439.11272254,0.00013114,2]
[419865060,1775441441707,-150.0,0.00013114,2]
[419865061,1775441441716,-1600.0,0.00013231,2]
[419865062,1775441441726,-160.23,0.00013374,2]
[419865063,1775441441735,-3240.0,0.00013425,2]
[419865064,1775441441744,-578.20924308,0.00013572,2]
[419865065,1775441441754,-195.58351224,0.00013572,2]
[419865066,1775441441764,-500.0,0.00013572,2]
[419865067,1775441441773,-151.0,0.00013572,2]
[419865068,1775441441784,-174.61919141,0.00013572,2]
[419865069,1775441441794,-170.0,0.00013572,2]
[419865070,1775441441804,-170.0,0.00013572,2]
[419865071,1775441441814,-170.0,0.00013572,2]
[419865073,1775441441824,-170.0,0.00013572,2]
[419865074,1775441441835,-170.0,0.00013572,2]
[419865075,1775441441845,-170.0,0.00013572,2]
[419865076,1775441441854,-170.0,0.00013572,2]
[419865077,1775441441864,-170.0,0.00013572,2]
[419865078,1775441441874,-170.0,0.00013572,2]
[419865079,1775441441884,-170.0,0.00013572,2]
[419865080,1775441441894,-170.0,0.00013572,2]
[419865081,1775441441904,-170.0,0.00013572,2]
[419865082,1775441441913,-500.0,0.00013627,2]
[419865083,1775441441923,-151.0,0.00013627,2]
[419865084,1775441441932,-500.0,0.00013682,2]
[419865085,1775441441942,-151.0,0.00013682,2]
[419865086,1775441441951,-200.0,0.00013699,2]
[419865087,1775441441960,-1660.59,0.00013699,2]
[419865088,1775441441970,-166.66,0.00013699,2]
[419865089,1775441441979,-1570.49779771,0.00013736,2]
[419865090,1775441441988,-500.0,0.00013737,2]
[419865091,1775441441998,-151.0,0.00013737,2]
[419865092,1775441442008,-5000.0,0.00013751,2]
[419865093,1775441442018,-5000.0,0.00013751,2]
[419865094,1775441442028,-1727.51372068,0.00013751,2]
[419865095,1775441442042,-1271.86348119,0.00013751,2]
[419865104,1775441446668,-262.00413181,0.00013751,2]
[419865105,1775441446681,-989.29856,0.00013751,2]
[419865106,1775441446768,-749.32010632,0.00013751,2]
[419865107,1775441446777,-5000.0,0.00013751,2]
[419865108,1775441446786,-1292.5171,0.00013758,2]
[419865109,1775441446795,-500.0,0.00013792,2]
[419865110,1775441446805,-151.0,0.00013792,2]
[419865111,1775441446814,-232.30860478,0.00013813,2]
[419865112,1775441446825,-160.23,0.00013816,2]
[419865113,1775441446838,-500.0,0.00013822,2]
[419865114,1775441446849,-349.82131841,0.00013822,2]
[419865115,1775441446858,-500.0,0.00013822,2]
[419865116,1775441446867,-500.0,0.00013822,2]
[419865117,1775441446876,-500.0,0.00013822,2]
[419865118,1775441446886,-310.8644,0.00013823,2]
[419865119,1775441446896,-2500.0,0.00013823,2]
[419865120,1775441446905,-5428.41016789,0.00013823,2]
[419865122,1775441446951,-13004.66814329,0.00013823,2]
[419865125,1775441446970,-4694.93067227,0.00013823,2]
[419865285,1775441448584,-12484.76935752,0.00013823,2]
[419865287,1775441448596,-21738.92674182,0.00013823,2]
[419865299,1775441448694,-229451.4180947,0.00013823,2]
[419865302,1775441448708,-887.00102635,0.00013823,2]
[419865304,1775441448719,-8588.21715671,0.00013823,2]
[419865547,1775442196710,568.52,8.516e-05,2]
[419865548,1775442202354,568.52,8.516e-05,2]
[419865549,1775442211468,284.26,8.516e-05,2]
[419865559,1775442632041,-700.0,0.00012739,2]
[419865560,1775442632053,-500.0,0.00012739,2]
[419865561,1775442632062,-300.0,0.00012749,2]
[419865562,1775442632072,-67.71918183,0.0001275,2]
[419865563,1775442632813,-432.28081817,0.0001275,2]
[419865564,1775442632823,-200.0,0.00012869,2]
[419865565,1775442632832,-382.87918183,0.00012896,2]
[419865566,1775442632844,-1117.12081817,0.00012896,2]
[419865567,1775442632853,-1559.5,0.00013,2]
[419865568,1775442632863,-250.0,0.00013,2]
[419865569,1775442632872,-800.7075235,0.00013,2]
[419865570,1775442632882,-360.25149005,0.000131,2]
[419865571,1775442632893,-146.74850995,0.000131,2]
[419865572,1775442632903,-2656.95215378,0.00013454,2]
[419865573,1775442632915,-1633.8758501,0.00013454,2]
[419865574,1775442632926,-766.01991102,0.00013454,2]
[419865575,1775442632939,-3282.07846847,0.00013454,2]
[419865576,1775442632955,-689.16136204,0.00013454,2]
[419865577,1775442632978,-292.91733824,0.00013454,2]
[419865578,1775442632989,-386.80493735,0.00013454,2]
[419865579,1775442632998,-150.0,0.00013522,2]
[419865580,1775442633007,-261.0912576,0.00013522,2]
[419865581,1775442633017,-28277.04993672,0.00013523,2]
[419865582,1775442633028,-530.57794545,0.00013523,2]
[419865583,1775442633039,-3583.63706032,0.00013523,2]
[419865585,1775442633058,-255.75980045,0.00013523,2]
[419865586,1775442633069,-798.8542179,0.00013523,2]
[419865587,1775442633080,-344.21686775,0.00013523,2]
[419865609,1775442637937,-863.35587239,0.00013523,2]
[419865610,1775442637953,-40370.29201201,0.00013523,2]
[419865611,1775442637972,-4131.57449147,0.00013523,2]
[419865612,1775442637984,-650.24869359,0.00013523,2]
[419865613,1775442637995,-3846.97953325,0.00013523,2]
[419865614,1775442638007,-1492.8292,0.00013523,2]
[419865615,1775442638033,-421.5,0.00013523,2]
[419865616,1775442638186,-52352.21813927,0.00013523,2]
[419865622,1775442640155,-37118.0144302,0.00013523,2]
[419865623,1775442640167,-2943.95635846,0.00013523,2]
[419865624,1775442640178,-5239.89376426,0.00013523,2]
[419865625,1775442640459,-45045.25767862,0.00013523,2]
[419865626,1775442640575,-2092.53008956,0.00013523,2]
[419865638,1775442642993,-2198.14611638,0.00013523,2]
[419865639,1775442643020,-5328.59842561,0.00013523,2]
[419865640,1775442643032,-343.10411232,0.00013523,2]
[419865641,1775442643044,-9037.27099763,0.00013523,2]
[419865642,1775442643071,-56278.56365644,0.00013523,2]
[419865645,1775442645714,-1996.07423037,0.00013523,2]
[419865646,1775442645726,-2767.58143984,0.00013523,2]
[419865647,1775442645830,-289.53899997,0.00013523,2]
[419865648,1775442645890,-1176.41466757,0.00013523,2]
[419865849,1775443833580,-414.07,0.00012507,2]
[419865850,1775443833591,-150.0,0.00012559,2]
[419865851,1775443833600,-1600.0,0.0001258,2]
[419865852,1775443833610,-253.91,0.00012667,2]
[419865853,1775443833620,-266.78,0.0001268,2]
[419865854,1775443833629,-1639.121861,0.00012914,2]
[419865855,1775443833639,-162.52,0.00012962,2]
[419865856,1775443833649,-162.82,0.00012979,2]
[419865857,1775443833659,-250.0,0.00013,2]
[419865858,1775443833669,-150.0,0.00013,2]
[419865859,1775443833679,-4451.44482644,0.00013307,2]
[419865860,1775443833718,-574.81083747,0.00013307,2]
[419865861,1775443833730,-14861.54283471,0.00013307,2]
[419865862,1775443833741,-4327.02636554,0.00013307,2]
[419865863,1775443833756,-388.8323745,0.00013307,2]
[419865864,1775443833767,-314.57995572,0.00013307,2]
[419865865,1775443833779,-1513.58232096,0.00013307,2]
[419865866,1775443833867,-301.48251273,0.00013307,2]
[419865867,1775443833879,-3135.87063297,0.00013307,2]
[419865868,1775443834163,-1950.17403298,0.00013307,2]
[419865869,1775443834175,-4775.8559646,0.00013307,2]
[419865870,1775443834186,-458.44747329,0.00013307,2]
[419865871,1775443834543,-2398.33092069,0.00013307,2]
[419865872,1775443834555,-1173.6771795,0.00013307,2]
[419865873,1775443834566,-2412.11522595,0.00013307,2]
[419865881,1775443837903,-330.47737862,0.00013307,2]
[419865882,1775443838010,-553.76136353,0.00013307,2]
[419865883,1775443838064,-4659.21531973,0.00013307,2]
[419865884,1775443838076,-1000.000001,0.00013307,2]
[419865885,1775443838118,-2585.65413641,0.00013307,2]
[419865886,1775443838227,-10138.19658479,0.00013307,2]
[419865887,1775443838239,-6691.85126225,0.00013307,2]
[419865888,1775443840009,-477.554,0.00013307,2]
[419865889,1775443840064,-1067.42379196,0.00013307,2]
[419865890,1775443840588,-3466.52067866,0.00013307,2]
[419865891,1775443840599,-8441.88632382,0.00013307,2]
[419865892,1775443840611,-350.74079994,0.00013307,2]
[419865893,1775443840622,-647.51,0.00013307,2]
[419865894,1775443840660,-357.20017175,0.00013307,2]
[419865895,1775443840672,-264.56333182,0.00013307,2]
[419865896,1775443840684,-564.11572434,0.00013307,2]
[419865897,1775443840759,-1125.18647593,0.00013307,2]
[419865914,1775443844727,-500.0,0.00013306,2]
[419865915,1775443844737,-500.0,0.00013306,2]
[419865916,1775443844747,-500.0,0.00013306,2]
[419865917,1775443844757,-500.0,0.00013306,2]
[419865918,1775443844766,-500.0,0.00013306,2]
[419865919,1775443844777,-500.0,0.00013306,2]
[419865920,1775443844787,-402.4283074,0.00013306,2]
[419865921,1775443844797,-500.0,0.00013306,2]
[419865922,1775443844806,-500.0,0.00013306,2]
[419865923,1775443844816,-500.0,0.00013306,2]
[419865924,1775443844826,-406.46835929,0.00013306,2]
[419865925,1775443844859,-93.53164071,0.00013306,2]
[419865926,1775443844869,-500.0,0.00013306,2]
[419865927,1775443844878,-500.0,0.00013306,2]
[419865928,1775443844888,-500.0,0.00013306,2]
[419865929,1775443844899,-500.0,0.00013306,2]
[419865930,1775443844909,-500.0,0.00013306,2]
[419865931,1775443844918,-500.0,0.00013306,2]
[419865932,1775443844928,-500.0,0.00013306,2]
[419865933,1775443844939,-500.0,0.00013306,2]
[419865934,1775443844949,-500.0,0.00013306,2]
[419865935,1775443844959,-500.0,0.00013306,2]
[419865936,1775443844968,-500.0,0.00013306,2]
[419865937,1775443844986,-500.0,0.00013306,2]
[419865938,1775443844997,-500.0,0.00013306,2]
[419865939,1775443845007,-500.0,0.00013306,2]
[419865940,1775443845018,-616.84904423,0.00013306,2]
[419865941,1775443845028,-500.0,0.00013306,2]
[419865942,1775443845038,-500.0,0.00013306,2]
[419865943,1775443845048,-500.0,0.00013306,2]
[419865944,1775443845058,-500.0,0.00013306,2]
[419865945,1775443845069,-500.0,0.00013306,2]
[419865946,1775443845079,-500.0,0.00013306,2]
[419865947,1775443845089,-500.0,0.00013306,2]
[419865948,1775443845099,-500.0,0.00013306,2]
[419865949,1775443845109,-500.0,0.00013306,2]
[419865950,1775443845120,-500.0,0.00013306,2]
[419865951,1775443845130,-500.0,0.00013306,2]
[419865952,1775443845140,-500.0,0.00013306,2]
[419865953,1775443845150,-500.0,0.00013306,2]
[419865954,1775443845160,-42223.79155904,0.00013307,2]
[419865955,1775443845173,-31768.68772942,0.00013307,2]
[419865956,1775443845185,-25819.14026162,0.00013307,2]
[419865957,1775443845198,-3145.88012828,0.00013307,2]
[419865960,1775443846693,-500.0,0.00013306,2]
[419865961,1775443846704,-500.0,0.00013306,2]
[419865962,1775443846715,-500.0,0.00013306,2]
[419865963,1775443846725,-500.0,0.00013306,2]
[419865964,1775443846736,-500.0,0.00013306,2]
[419865965,1775443846747,-6074.70448286,0.00013307,2]
[419865966,1775443846780,-90185.88195267,0.00013307,2]
[419865967,1775444039823,3500.83,8.516e-05,2]
[419865968,1775444112036,271.0,8.516e-05,3]
[419865969,1775444112489,160.0,8.516e-05,3]
[419865971,1775444164878,272.0,8.516e-05,3]
[419865972,1775444226811,271.0,8.516e-05,3]
[419865973,1775444287664,270.0,8.516e-05,3]
[419865974,1775444345439,268.0,8.516e-05,3]
[419865977,1775444465626,264.0,8.516e-05,3]
[419865978,1775444531285,271.0,8.516e-05,3]
[419865979,1775444587276,266.0,8.516e-05,3]
[419865980,1775444646770,260.0,8.516e-05,3]
[419865981,1775444705267,158.0,8.516e-05,3]
[419865982,1775444705494,255.0,8.516e-05,3]
[419865988,1775444768749,250.0,8.516e-05,3]
[419865991,1775444888895,253.0,8.516e-05,3]
[419865992,1775444947680,241.0,8.516e-05,3]
[419865995,1775445011359,236.0,8.516e-05,3]
[419865998,1775445013866,157.0,8.516e-05,3]
[419866001,1775445031844,-236.0,0.00010533,3]
[419866002,1775445031854,-4382.21373808,0.000107,2]
[419866003,1775445031896,-9194.64174242,0.000107,2]
[419866004,1775445031951,-5372.8104,0.000107,2]
[419866005,1775445032006,-868.52832,0.000107,2]
[419866006,1775445032019,-9835.566751,0.000107,2]
[419866007,1775445032063,-1924.95323367,0.000107,2]
[419866008,1775445032075,-706.82415317,0.000107,2]
[419866009,1775445032119,-21922.42510504,0.000107,2]
[419866010,1775445032130,-315.7234,0.000107,2]
[419866011,1775445032141,-343.29292514,0.000107,2]
[419866012,1775445032170,-30712.22869999,0.000107,2]
[419866057,1775445038682,-1224.84992967,0.000107,2]
[419866061,1775445038717,-4515.63260278,0.000107,2]
[419866064,1775445038728,-1897.68220626,0.000107,2]
[419866067,1775445038753,-446.26987052,0.000107,2]
[419866070,1775445038776,-29881.96787681,0.000107,2]
[419866072,1775445038785,-1908.83,0.00011507,2]
[419866074,1775445038795,-1200.0,0.00011585,2]
[419866076,1775445038805,-252.79671744,0.00011586,2]
[419866078,1775445038814,-600.0,0.00011586,2]
[419866080,1775445038823,-250.0,0.00011586,2]
[419866082,1775445038833,-655.300005,0.00011586,2]
[419866084,1775445038842,-150.0,0.00012,2]
[419866086,1775445038852,-150.0,0.00012,2]
[419866088,1775445038861,-150.0,0.00012,2]
[419866090,1775445038870,-1500.0,0.00012421,2]
[419866091,1775445038880,-2000.0,0.00012423,2]
[419866093,1775445038890,-200.0,0.00012465,2]
[419866095,1775445038899,-236.0,0.0001255,3]
[419866096,1775445038909,-500.0,0.00012575,2]
[419866097,1775445038919,-190.29222543,0.00012675,2]
[419866098,1775445038928,-1680.0,0.00012744,2]
[419866099,1775445038938,-1467.0,0.00012773,2]
[419866100,1775445038948,-277.26359691,0.00012773,2]
[419866101,1775445038958,-574.0,0.00012944,2]
[419866102,1775445038967,-414.0,0.00012944,2]
[419866103,1775445038977,-1424.0,0.0001297,2]
[419866104,1775445038986,-400.0,0.0001297,2]
[419866105,1775445038996,-1894.0,0.00012996,2]
[419866106,1775445039005,-276.0,0.00012996,2]
[419866107,1775445039015,-286.0,0.00013021,2]
[419866108,1775445039024,-363.0,0.00013047,2]
[419866109,1775445039034,-507.0,0.000131,2]
[419866110,1775445039045,-150.0,0.00013106,2]
[419866111,1775445039054,-16860.0718,0.00013107,2]
[419866112,1775445039064,-842.53074526,0.00013107,2]
[419866118,1775445040392,-693.93715474,0.00013107,2]
[419866119,1775445040401,-209.27603061,0.00013107,2]
[419866120,1775445040413,-633.78099589,0.00013107,2]
[419866121,1775445040425,-624.5729019,0.00013107,2]
[419866122,1775445040436,-837.61879781,0.00013107,2]
[419866123,1775445040446,-1000.0,0.000132,2]
[419866124,1775445040455,-745.54478219,0.000132,2]
[419866125,1775445040467,-277.1987,0.000132,2]
[419866126,1775445040487,-960.88651781,0.000132,2]
[419866127,1775445040496,-182.166,0.000132,2]
[419866128,1775445040505,-1007.321709,0.00013206,2]
[419866129,1775445040515,-155.82536749,0.00013206,2]
[419866130,1775445040525,-1000.0,0.00013207,2]
[419866131,1775445040534,-67.77724066,0.00013207,2]
[419866132,1775445041160,-685.23475768,0.00013207,2]
[419866133,1775445041171,-1386.70499995,0.00013207,2]
[419866147,1775445045947,-30895.92320171,0.00013207,2]
[419866149,1775445045957,-36439.05321087,0.00013207,2]
[419866150,1775445046001,-41326.6846784,0.00013207,2]
[419866152,1775445046060,-84487.56202111,0.00013207,2]
[419866153,1775445046076,-99578.328639,0.00013207,2]
[419866155,1775445046088,-20592.60526196,0.00013207,2]
[419866164,1775445046166,-931.86771549,0.00013207,2]
[419866166,1775445046179,-20292.30420578,0.00013207,2]
[419866168,1775445046190,-60445.54614845,0.00013207,2]
[419866170,1775445046203,-21624.19521891,0.00013207,2]
[419866171,1775445046214,-3895.55724568,0.00013207,2]
[419866174,1775445046380,-838.84604795,0.00013207,2]
[419866175,1775445046484,-5038.18168835,0.00013207,2]
[419866177,1775445046496,-4362.25192,0.00013207,2]
[419866178,1775445046507,-41049.2077956,0.00013207,2]
[419866192,1775446232024,-429.23033942,0.00012344,2]
[419866193,1775446232075,-70.76966058,0.00012344,2]
[419866194,1775446232085,-196.60769136,0.00012402,2]
[419866195,1775446232096,-254.14013485,0.00012402,2]
[419866196,1775446232108,-369.98931999,0.00012402,2]
[419866197,1775446232120,-779.2628538,0.00012402,2]
[419866198,1775446232129,-162.82,0.00012417,2]
[419866199,1775446232139,-1858.88375768,0.00012807,2]
[419866200,1775446232150,-641.11624232,0.00012807,2]
[419866201,1775446232160,-994.24863765,0.00012872,2]
[419866202,1775446232172,-205.75136235,0.00012872,2]
[419866203,1775446232181,-350.0,0.00012881,2]
[419866204,1775446232192,-1389.58993583,0.00012899,2]
[419866205,1775446232201,-150.0,0.00012905,2]
[419866206,1775446232210,-328.73765533,0.00012906,2]
[419866207,1775446232222,-171.26234467,0.00012906,2]
[419866208,1775446232231,-500.0,0.00012906,2]
[419866209,1775446232241,-500.0,0.00012906,2]
[419866210,1775446232250,-461.4472078,0.00012906,2]
[419866211,1775446232261,-38.5527922,0.00012906,2]
[419866212,1775446232270,-561.68490442,0.00012906,2]
[419866213,1775446232280,-500.0,0.00012906,2]
[419866214,1775446232290,-500.0,0.00012906,2]
[419866215,1775446232299,-500.0,0.00012906,2]
[419866216,1775446232309,-500.0,0.00012906,2]
[419866217,1775446232318,-1281.54551456,0.00012907,2]
[419866218,1775446232335,-4212.56134968,0.00012907,2]
[419866219,1775446232364,-1309.68764366,0.00012907,2]
[419866220,1775446232375,-257.8752,0.00012907,2]
[419866221,1775446232387,-326.03172292,0.00012907,2]
[419866222,1775446232398,-3016.37873719,0.00012907,2]
[419866223,1775446232410,-402.27868919,0.00012907,2]
[419866226,1775446232431,-852.41220014,0.00012907,2]
[419866228,1775446232442,-424.84285358,0.00012907,2]
[419866229,1775446232454,-3144.51543592,0.00012907,2]
[419866230,1775446232465,-770.85662731,0.00012907,2]
[419866232,1775446232480,-1295.9148631,0.00012907,2]
[419866233,1775446232492,-2993.88054873,0.00012907,2]
[419866234,1775446238199,-686.43652,0.00012807,2]
[419866235,1775446238362,-584.40775211,0.00012807,2]
[419866236,1775446238386,-1209.90536916,0.00012807,2]
[419866237,1775446238403,-1443.81447195,0.00012807,2]
[419866238,1775446238416,-287.30818657,0.00012807,2]
[419866265,1775446242031,-2227.50070037,0.00012807,2]
[419866266,1775446242104,-7802.28725334,0.00012807,2]
[419866273,1775446243312,-443.4506406,0.00012807,2]
[419866274,1775446243325,-20503.50605604,0.00012807,2]
[419866275,1775446243369,-24160.54048513,0.00012807,2]
[419866276,1775446243381,-186377.73216473,0.00012807,2]
[419866277,1775446243391,-16605.5456596,0.00012907,2]
[419866280,1775446246187,-60059.53799963,0.00012907,2]
[419866281,1775446246508,-1727.04008768,0.00012907,2]
[419866295,1775447438397,-1152.59635165,0.00011972,2]
[419866307,1775447443815,-347.40364835,0.00011972,2]
[419866308,1775447443826,-2000.0,0.00012282,2]
[419866309,1775447443837,-150.0,0.00012327,2]
[419866310,1775447443847,-200.0,0.00012342,2]
[419866311,1775447443858,-160.23,0.00012358,2]
[419866312,1775447443868,-182.16741077,0.00012551,2]
[419866313,1775447443878,-1586.904,0.00012551,2]
[419866314,1775447443888,-157.97,0.000126,2]
[419866315,1775447443897,-157.0,0.000126,2]
[419866316,1775447443907,-442.4647119,0.00012649,2]
[419866317,1775447443918,-150.0,0.00012734,2]
[419866318,1775447443928,-300.0,0.00012734,2]
[419866319,1775447443938,-2074.72385358,0.00012735,2]
[419866320,1775447443948,-562.85781606,0.00012736,2]
[419866321,1775447443958,-1377.42282659,0.00012799,2]
[419866322,1775447443968,-500.0,0.00012799,2]
[419866323,1775447443977,-500.0,0.00012799,2]
[419866324,1775447443987,-500.0,0.00012799,2]
[419866325,1775447443998,-500.0,0.00012799,2]
[419866326,1775447444007,-500.0,0.00012799,2]
[419866329,1775447444483,-500.0,0.00012799,2]
[419866330,1775447444509,-500.0,0.00012799,2]
[419866331,1775447444520,-500.0,0.00012799,2]
[419866332,1775447444530,-500.0,0.00012799,2]
[419866333,1775447444540,-500.0,0.00012799,2]
[419866334,1775447444550,-500.0,0.00012799,2]
[419866335,1775447444560,-500.0,0.00012799,2]
[419866336,1775447444569,-263.79616682,0.00012799,2]
[419866337,1775447444580,-174.61919141,0.00012799,2]
[419866338,1775447444589,-151.0,0.00012799,2]
[419866339,1775447444599,-743.50770149,0.00012799,2]
[419866340,1775447444609,-359.56877178,0.00012799,2]
[419866341,1775447444619,-200.0,0.00012804,2]
[419866342,1775447444630,-490.99968181,0.00012806,2]
[419866343,1775447444640,-500.0,0.00012806,2]
[419866344,1775447444650,-501.11436126,0.00012806,2]
[419866345,1775447444660,-442.06595767,0.00012806,2]
[419866346,1775447444670,-500.0,0.00012806,2]
[419866347,1775447444680,-500.0,0.00012806,2]
[419866348,1775447444690,-607.06356728,0.00012806,2]
[419866349,1775447444700,-187.2014952,0.00012806,2]
[419866350,1775447444711,-500.0,0.00012806,2]
[419866351,1775447444721,-500.0,0.00012806,2]
[419866352,1775447444730,-1000.0,0.00012807,2]
[419866353,1775447444740,-11722.1695,0.00012807,2]
[419866354,1775447444750,-14386.89386869,0.00012807,2]
[419866355,1775447444763,-433789.73538623,0.00012807,2]
[419866356,1775447446341,-30922.96982691,0.00012807,2]
[419866357,1775447446552,-3778.74446724,0.00012807,2]
[419866365,1775448631472,-3766.60401429,0.000107,2]
[419866366,1775448631579,-5877.84467409,0.000107,2]
[419866367,1775448631686,-280.63250004,0.000107,2]
[419866368,1775448631699,-717.53208607,0.000107,2]
[419866369,1775448631711,-8852.52802417,0.000107,2]
[419866401,1775448637595,-7614.81346946,0.000107,2]
[419866403,1775448637650,-1921.59346976,0.000107,2]
[419866404,1775448637663,-590.45485902,0.000107,2]
[419866405,1775448637970,-811.17652061,0.000107,2]
[419866420,1775448641527,-1297.06587191,0.000107,2]
[419866426,1775448645505,-1174.07003977,0.000107,2]
[419866427,1775448645519,-893.42055812,0.000107,2]
[419866428,1775448645559,-3904.92873196,0.000107,2]
[419866429,1775448645580,-788.40802584,0.000107,2]
[419866430,1775448645591,-1590.69,0.00011507,2]
[419866431,1775448645603,-500.0,0.00012386,2]
[419866432,1775448645614,-1269.523,0.00012453,2]
[419866433,1775448645625,-3545.4126,0.00012607,2]
[419866434,1775448645637,-202.63571041,0.00012633,2]
[419866435,1775448645656,-394.97800681,0.00012633,2]
[419866436,1775448645772,-602.38628278,0.00012633,2]
[419866437,1775448645783,-17.94871922,0.00012634,2]
[419866438,1775448645797,-560.26052386,0.00012634,2]
[419866439,1775448645807,-500.0,0.00012634,2]
[419866440,1775448645818,-870.33840216,0.00012641,2]
[419866441,1775448645832,-996.91306608,0.00012641,2]
[419866442,1775448645843,-500.0,0.00012689,2]
[419866443,1775448645854,-34.13621392,0.00012698,2]
[419866444,1775448645868,-115.86378608,0.00012698,2]
[419866445,1775448645879,-599.34471392,0.00012699,2]
[419866446,1775448645892,-96.05321795,0.00012699,2]
[419866447,1775448645903,-500.0,0.00012699,2]
[419866448,1775448645914,-200.0,0.00012699,2]
[419866449,1775448645925,-260.11098205,0.00012699,2]
[419866450,1775448645939,-239.88901795,0.00012699,2]
[419866451,1775448645949,-101.13847251,0.00012699,2]
[419866648,1775449832772,-1500.0,0.00011601,2]
[419866649,1775449832782,-150.0,0.00011716,2]
[419866650,1775449832791,-2000.0,0.00011753,2]
[419866651,1775449832801,-1110.19583032,0.00011844,2]
[419866652,1775449832825,-89.80416968,0.00011844,2]
[419866653,1775449832835,-300.0,0.00011844,2]
[419866654,1775449832844,-119.16095797,0.00011844,2]
[419866655,1775449832880,-30.83904203,0.00011844,2]
[419866656,1775449832889,-256.22527515,0.00011845,2]
[419866657,1775449832901,-243.77472485,0.00011845,2]
[419866658,1775449832912,-500.0,0.00011845,2]
[419866659,1775449832921,-151.16095797,0.00011845,2]
[419866680,1775449838019,-348.83904203,0.00011845,2]
[419866681,1775449838028,-500.0,0.00011845,2]
[419866682,1775449838038,-500.0,0.00011845,2]
[419866683,1775449838047,-500.0,0.00011845,2]
[419866684,1775449838056,-500.0,0.00011845,2]
[419866685,1775449838065,-500.0,0.00011845,2]
[419866686,1775449838074,-500.0,0.00011845,2]
[419866687,1775449838083,-500.0,0.00011845,2]
[419866688,1775449838092,-500.0,0.00011845,2]
[419866689,1775449838101,-500.0,0.00011845,2]
[419866690,1775449838110,-63.57209474,0.00011845,2]
[419866691,1775449838126,-436.42790526,0.00011845,2]
[419866692,1775449838134,-500.0,0.00011845,2]
[419866693,1775449838143,-279.95370678,0.00011845,2]
[419866694,1775449838154,-220.04629322,0.00011845,2]
[419866695,1775449838163,-1201.91403584,0.00011845,2]
[419866696,1775449838286,-398.08596416,0.00011845,2]
[419866697,1775449838295,-183.05416264,0.00012146,2]
[419866698,1775449838306,-16.94583736,0.00012146,2]
[419866699,1775449838315,-289.0,0.00012272,20]
[419866700,1775449838324,-34.69641022,0.00012272,2]
[419866724,1775449840663,-308.51358978,0.00012272,2]
[419866725,1775449840673,-350.0,0.00012328,2]
[419866726,1775449840683,-502.0,0.00012356,2]
[419866727,1775449840693,-247.00960069,0.0001237,2]
[419866734,1775449841135,-102.99039931,0.0001237,2]
[419866735,1775449841144,-233.80244729,0.000124,2]
[419866736,1775449841164,-1766.19755271,0.000124,2]
[419866737,1775449841174,-693.9372,0.00012507,2]
[419866738,1775449841184,-193.39103303,0.00012507,2]
[419866739,1775449841193,-1764.83202412,0.00012507,2]
[419866740,1775449841202,-578.20924308,0.00012552,2]